[Event "Live Chess"]
[Site "Chess.com"]
[Date "2023.05.20"]
[Round "-"]
[White "guptarayan"]
[Black "ethanredball"]
[Result "0-1"]
[WhiteElo "573"]
[BlackElo "633"]
[TimeControl "300"]
[EndTime "9:58:09 PDT"]
[Termination "ethanredball won by checkmate"]

1. e4 {[%clk 0:04:59.5]} 1... d5 {[%clk 0:04:58.5]} 2. exd5 {[%clk 0:04:57.3]}
2... Qxd5 {[%clk 0:04:55.4]} 3. d4 {[%clk 0:04:57.2]} 3... Nf6 {[%clk
0:04:53.4]} 4. c4 {[%clk 0:04:56.4]} 4... Qd8 {[%clk 0:04:51.3]} 5. Nc3 {[%clk
0:04:55.5]} 5... Nc6 {[%clk 0:04:48]} 6. Bf4 {[%clk 0:04:52.3]} 6... a6 {[%clk
0:04:42.8]} 7. d5 {[%clk 0:04:50.4]} 7... Nb8 {[%clk 0:04:35.6]} 8. Nf3 {[%clk
0:04:47.3]} 8... c6 {[%clk 0:04:34.5]} 9. dxc6 {[%clk 0:04:43.2]} 9... Nxc6
{[%clk 0:04:32.6]} 10. Qxd8+ {[%clk 0:04:41.3]} 10... Nxd8 {[%clk 0:04:30.6]}
11. O-O-O {[%clk 0:04:36.9]} 11... e6 {[%clk 0:04:28]} 12. Be2 {[%clk
0:04:35.5]} 12... Be7 {[%clk 0:04:26.5]} 13. Rd3 {[%clk 0:04:34.2]} 13... O-O
{[%clk 0:04:19.4]} 14. Rhd1 {[%clk 0:04:30.3]} 14... h6 {[%clk 0:04:10.5]} 15.
Bc7 {[%clk 0:04:27.5]} 15... Nc6 {[%clk 0:04:06.4]} 16. Bd6 {[%clk 0:04:19.2]}
16... Bxd6 {[%clk 0:04:04.3]} 17. Rxd6 {[%clk 0:04:18]} 17... Ne8 {[%clk
0:04:00.6]} 18. R6d3 {[%clk 0:04:15.1]} 18... b6 {[%clk 0:03:49.7]} 19. Ng5
{[%clk 0:04:13.5]} 19... hxg5 {[%clk 0:03:44.6]} 20. Rh3 {[%clk 0:04:13.4]}
20... f6 {[%clk 0:03:36.8]} 21. Ne4 {[%clk 0:04:10]} 21... Kf7 {[%clk
0:03:28.1]} 22. Bh5+ {[%clk 0:04:04.4]} 22... Ke7 {[%clk 0:03:25.4]} 23. Bxe8
{[%clk 0:04:02.8]} 23... Kxe8 {[%clk 0:03:23.9]} 24. Rh7 {[%clk 0:04:00.9]}
24... Rf7 {[%clk 0:03:20.3]} 25. Nd6+ {[%clk 0:03:57.5]} 25... Kf8 {[%clk
0:03:13.6]} 26. Nxf7 {[%clk 0:03:55.6]} 26... Kxf7 {[%clk 0:03:12.2]} 27. Rd6
{[%clk 0:03:51.5]} 27... Ne5 {[%clk 0:03:04.8]} 28. b4 {[%clk 0:03:37.7]} 28...
Kg6 {[%clk 0:03:02.8]} 29. Rh8 {[%clk 0:03:33.8]} 29... Bb7 {[%clk 0:02:54]} 30.
Rxa8 {[%clk 0:03:31]} 30... Bxa8 {[%clk 0:02:52.3]} 31. Rxb6 {[%clk 0:03:29.2]}
31... Bxg2 {[%clk 0:02:49.7]} 32. Rxa6 {[%clk 0:03:27]} 32... Nxc4 {[%clk
0:02:47]} 33. Rc6 {[%clk 0:03:23]} 33... Bxc6 {[%clk 0:02:41.3]} 34. Kc2 {[%clk
0:03:16.7]} 34... Kf5 {[%clk 0:02:39.7]} 35. Kb3 {[%clk 0:03:14.7]} 35... Ne5
{[%clk 0:02:37.5]} 36. a4 {[%clk 0:03:13.1]} 36... g4 {[%clk 0:02:33.8]} 37. b5
{[%clk 0:03:09.6]} 37... Bxb5 {[%clk 0:02:32.1]} 38. axb5 {[%clk 0:03:07.9]}
38... Nd7 {[%clk 0:02:30.8]} 39. Ka4 {[%clk 0:03:06.5]} 39... Kf4 {[%clk
0:02:29.1]} 40. Ka5 {[%clk 0:03:05.4]} 40... Kf3 {[%clk 0:02:27.7]} 41. b6
{[%clk 0:03:04.5]} 41... Nxb6 {[%clk 0:02:26.2]} 42. Kxb6 {[%clk 0:03:03.5]}
42... Kxf2 {[%clk 0:02:24.9]} 43. Kc6 {[%clk 0:03:02.1]} 43... Kg2 {[%clk
0:02:23.3]} 44. h4 {[%clk 0:02:59.8]} 44... gxh3 {[%clk 0:02:21.8]} 45. Kd6
{[%clk 0:02:58.3]} 45... g5 {[%clk 0:02:20]} 46. Kxe6 {[%clk 0:02:57.2]} 46...
g4 {[%clk 0:02:18.6]} 47. Kxf6 {[%clk 0:02:56.1]} 47... g3 {[%clk 0:02:17.1]}
48. Kf5 {[%clk 0:02:55.2]} 48... h2 {[%clk 0:02:15.8]} 49. Kg4 {[%clk
0:02:53.8]} 49... h1=Q {[%clk 0:02:12.7]} 50. Kf4 {[%clk 0:02:52.7]} 50... Kf1
{[%clk 0:02:10]} 51. Kxg3 {[%clk 0:02:51.2]} 51... Qg1+ {[%clk 0:02:05.3]} 52.
Kh4 {[%clk 0:02:49.2]} 52... Kf2 {[%clk 0:02:04.4]} 53. Kh5 {[%clk 0:02:47.9]}
53... Kf3 {[%clk 0:02:02.7]} 54. Kh6 {[%clk 0:02:47.1]} 54... Kf4 {[%clk
0:02:01.8]} 55. Kh5 {[%clk 0:02:46.4]} 55... Qg5# {[%clk 0:01:59.3]} 0-1

[Event "Live Chess"]
[Site "Chess.com"]
[Date "2023.05.20"]
[Round "-"]
[White "PackedNote"]
[Black "aliciabutteriss"]
[Result "0-1"]
[WhiteElo "784"]
[BlackElo "542"]
[TimeControl "300"]
[EndTime "9:58:09 PDT"]
[Termination "aliciabutteriss won by checkmate"]

1. e4 {[%clk 0:04:59.4]} 1... c6 {[%clk 0:04:59.2]} 2. Nf3 {[%clk 0:04:58.6]}
2... d5 {[%clk 0:04:58.1]} 3. exd5 {[%clk 0:04:57.1]} 3... cxd5 {[%clk
0:04:56.9]} 4. d4 {[%clk 0:04:57]} 4... Nc6 {[%clk 0:04:52.5]} 5. Bb5 {[%clk
0:04:55.9]} 5... a6 {[%clk 0:04:47.9]} 6. Bxc6+ {[%clk 0:04:48.9]} 6... bxc6
{[%clk 0:04:43.6]} 7. Nc3 {[%clk 0:04:46.9]} 7... e6 {[%clk 0:04:38.4]} 8. O-O
{[%clk 0:04:45.1]} 8... Bd6 {[%clk 0:04:37.4]} 9. Re1 {[%clk 0:04:36.5]} 9...
Nf6 {[%clk 0:04:32]} 10. a3 {[%clk 0:04:26.5]} 10... O-O {[%clk 0:04:30.3]} 11.
b4 {[%clk 0:04:25.2]} 11... Ng4 {[%clk 0:04:08.9]} 12. Ne5 {[%clk 0:04:07.5]}
12... Bxe5 {[%clk 0:04:04.2]} 13. dxe5 {[%clk 0:04:07.4]} 13... d4 {[%clk
0:03:57.2]} 14. Na2 {[%clk 0:04:00.1]} 14... Qb6 {[%clk 0:03:44.6]} 15. Re4
{[%clk 0:03:53.4]} 15... f5 {[%clk 0:03:36.2]} 16. Re1 {[%clk 0:03:43.5]} 16...
d3 {[%clk 0:03:32.6]} 17. Qxd3 {[%clk 0:03:32.9]} 17... Qxf2+ {[%clk 0:03:28.6]}
18. Kh1 {[%clk 0:03:23.8]} 18... Qxe1+ {[%clk 0:03:26.5]} 19. Qf1 {[%clk
0:03:23.2]} 19... Qxf1# {[%clk 0:03:25.4]} 0-1

[Event "Live Chess"]
[Site "Chess.com"]
[Date "2023.05.20"]
[Round "-"]
[White "Tema1107"]
[Black "Ninifu"]
[Result "1-0"]
[WhiteElo "1982"]
[BlackElo "1978"]
[TimeControl "300"]
[EndTime "9:58:19 PDT"]
[Termination "Tema1107 won by resignation"]

1. c4 {[%clk 0:04:55.6]} 1... Nf6 {[%clk 0:04:58.1]} 2. Nc3 {[%clk 0:04:54.9]}
2... g6 {[%clk 0:04:56.5]} 3. e4 {[%clk 0:04:53.8]} 3... d6 {[%clk 0:04:54.8]}
4. d4 {[%clk 0:04:51.5]} 4... Bg7 {[%clk 0:04:53.9]} 5. f3 {[%clk 0:04:50.9]}
5... O-O {[%clk 0:04:51.8]} 6. Be3 {[%clk 0:04:48]} 6... c5 {[%clk 0:04:48.3]}
7. Nge2 {[%clk 0:04:42.6]} 7... Nc6 {[%clk 0:04:46.2]} 8. g4 {[%clk 0:04:38.5]}
8... cxd4 {[%clk 0:04:38.2]} 9. Nxd4 {[%clk 0:04:38.4]} 9... Nd7 {[%clk
0:04:29.5]} 10. Be2 {[%clk 0:04:30.4]} 10... Nde5 {[%clk 0:04:25.2]} 11. b3
{[%clk 0:04:19.9]} 11... Qb6 {[%clk 0:04:24.3]} 12. Nd5 {[%clk 0:04:06.5]} 12...
Qa5+ {[%clk 0:04:19.2]} 13. Bd2 {[%clk 0:04:03.4]} 13... Nxd4 {[%clk 0:04:15.5]}
14. Bxa5 {[%clk 0:04:01.2]} 14... Ndxf3+ {[%clk 0:04:13.1]} 15. Bxf3 {[%clk
0:04:00.3]} 15... Nxf3+ {[%clk 0:04:11.7]} 16. Qxf3 {[%clk 0:03:54.3]} 16...
Bxa1 {[%clk 0:04:09.3]} 17. Bc3 {[%clk 0:03:54.2]} 17... Bxc3+ {[%clk
0:04:07.1]} 18. Qxc3 {[%clk 0:03:54.1]} 18... e5 {[%clk 0:03:58.2]} 19. c5
{[%clk 0:03:47.8]} 19... f6 {[%clk 0:03:45]} 20. cxd6 {[%clk 0:03:42.5]} 20...
Bxg4 {[%clk 0:03:42.5]} 21. O-O {[%clk 0:03:41.7]} 21... Rad8 {[%clk 0:03:31]}
22. Nxf6+ {[%clk 0:02:35.5]} 1-0

[Event "Live Chess"]
[Site "Chess.com"]
[Date "2023.05.20"]
[Round "-"]
[White "Singapourfeuj"]
[Black "PureMellowPlan"]
[Result "1-0"]
[WhiteElo "2262"]
[BlackElo "629"]
[TimeControl "300"]
[EndTime "9:58:23 PDT"]
[Termination "Singapourfeuj won by resignation"]

1. d4 {[%clk 0:04:56.9]} 1... d5 {[%clk 0:04:58.3]} 2. Nf3 {[%clk 0:04:55.8]}
2... Bf5 {[%clk 0:04:57.1]} 3. c4 {[%clk 0:04:54.9]} 3... dxc4 {[%clk 0:04:56]}
4. Nc3 {[%clk 0:04:53.6]} 4... Nc6 {[%clk 0:04:54.5]} 5. e4 {[%clk 0:04:52.4]}
5... Be6 {[%clk 0:04:50.7]} 6. d5 {[%clk 0:04:51.4]} 6... Bxd5 {[%clk
0:04:47.7]} 7. exd5 {[%clk 0:04:49.9]} 7... Nb4 {[%clk 0:04:32.5]} 8. Qa4+
{[%clk 0:04:48.6]} 8... Nc6 {[%clk 0:04:29.6]} 9. dxc6 {[%clk 0:04:47.4]} 9...
bxc6 {[%clk 0:04:28.8]} 10. Qxc6+ {[%clk 0:04:46.3]} 10... Qd7 {[%clk
0:04:26.4]} 11. Qxa8+ {[%clk 0:04:45.5]} 11... Qd8 {[%clk 0:04:24.9]} 12. Qxd8+
{[%clk 0:04:44.3]} 1-0

[Event "Live Chess"]
[Site "Chess.com"]
[Date "2023.05.20"]
[Round "-"]
[White "TobyQuaite"]
[Black "GEMdzq"]
[Result "0-1"]
[WhiteElo "1700"]
[BlackElo "2298"]
[TimeControl "300"]
[EndTime "9:58:33 PDT"]
[Termination "GEMdzq won by resignation"]

1. d4 {[%clk 0:04:57.3]} 1... Nf6 {[%clk 0:04:58.4]} 2. c4 {[%clk 0:04:56.2]}
2... e5 {[%clk 0:04:55.2]} 3. dxe5 {[%clk 0:04:56.1]} 3... Ng4 {[%clk
0:04:54.2]} 4. Bf4 {[%clk 0:04:55.3]} 4... Bc5 {[%clk 0:04:50.9]} 5. e3 {[%clk
0:04:53.8]} 5... Nc6 {[%clk 0:04:48.9]} 6. Nf3 {[%clk 0:04:52.5]} 6... Qe7
{[%clk 0:04:43.2]} 7. Bg5 {[%clk 0:04:32.4]} 7... Qe6 {[%clk 0:04:29.9]} 8. Nc3
{[%clk 0:04:29.9]} 8... Ngxe5 {[%clk 0:04:26.9]} 9. Nd5 {[%clk 0:04:21.2]} 9...
Bb4+ {[%clk 0:04:13]} 10. Nxb4 {[%clk 0:04:13]} 10... Nxb4 {[%clk 0:04:12.1]}
11. Nd4 {[%clk 0:04:03.4]} 11... Qg6 {[%clk 0:04:06.1]} 12. Bf4 {[%clk 0:04:02]}
12... Ned3+ {[%clk 0:03:59.9]} 13. Bxd3 {[%clk 0:03:52]} 13... Nxd3+ {[%clk
0:03:59.8]} 14. Ke2 {[%clk 0:03:51]} 14... Nxf4+ {[%clk 0:03:55.8]} 15. exf4
{[%clk 0:03:50]} 15... O-O {[%clk 0:03:54.9]} 16. Re1 {[%clk 0:03:46.7]} 16...
Qxg2 {[%clk 0:03:41.7]} 17. Rg1 {[%clk 0:03:39.2]} 17... Re8+ {[%clk 0:03:38.1]}
18. Kd3 {[%clk 0:03:25.2]} 18... Qe4+ {[%clk 0:03:33.3]} 19. Kc3 {[%clk
0:03:20]} 19... d6 {[%clk 0:03:31.1]} 20. Nb5 {[%clk 0:03:07.5]} 20... Be6
{[%clk 0:03:21.2]} 21. b3 {[%clk 0:02:49]} 21... Rec8 {[%clk 0:02:30.6]} 22. Qd2
{[%clk 0:02:25.2]} 22... a6 {[%clk 0:02:21.1]} 23. Nd4 {[%clk 0:02:23.9]} 23...
c5 {[%clk 0:02:00.3]} 24. Nc2 {[%clk 0:02:20.7]} 24... b5 {[%clk 0:01:58.5]} 25.
Rae1 {[%clk 0:02:17.7]} 25... Qf3+ {[%clk 0:01:48.6]} 26. Kb2 {[%clk 0:01:51.4]}
26... bxc4 {[%clk 0:01:47.5]} 27. Re3 {[%clk 0:01:45.5]} 27... Qxf4 {[%clk
0:01:46]} 28. Qc3 {[%clk 0:01:37.2]} 28... f6 {[%clk 0:01:29.5]} 29. Reg3 {[%clk
0:01:30.1]} 29... Ra7 {[%clk 0:01:24.8]} 30. bxc4 {[%clk 0:01:16]} 30... Rb8+
{[%clk 0:01:11.7]} 31. Ka1 {[%clk 0:01:11.8]} 31... Qe5 {[%clk 0:01:10.8]} 0-1

[Event "Live Chess"]
[Site "Chess.com"]
[Date "2023.05.20"]
[Round "-"]
[White "kenn48"]
[Black "LL220284LL"]
[Result "0-1"]
[WhiteElo "1194"]
[BlackElo "2405"]
[TimeControl "300"]
[EndTime "9:58:33 PDT"]
[Termination "LL220284LL won by resignation"]

1. e4 {[%clk 0:04:57.5]} 1... a5 {[%clk 0:04:59.2]} 2. Nf3 {[%clk 0:04:54.5]}
2... b6 {[%clk 0:04:58.8]} 3. Nc3 {[%clk 0:04:50.1]} 3... Bb7 {[%clk 0:04:58.7]}
4. d3 {[%clk 0:04:47.4]} 4... g6 {[%clk 0:04:56.6]} 5. Bd2 {[%clk 0:04:44.3]}
5... Bg7 {[%clk 0:04:55.7]} 6. g3 {[%clk 0:04:41.3]} 6... d6 {[%clk 0:04:54.4]}
7. Bh3 {[%clk 0:04:33.8]} 7... Nf6 {[%clk 0:04:53]} 8. Nd4 {[%clk 0:04:13.8]}
8... O-O {[%clk 0:04:48.8]} 9. Bg2 {[%clk 0:04:10.1]} 9... Nbd7 {[%clk
0:04:47.2]} 10. h4 {[%clk 0:04:07.8]} 10... Nxe4 {[%clk 0:04:43.6]} 11. Nb3
{[%clk 0:03:45.9]} 11... Nxc3 {[%clk 0:04:40.6]} 12. Bxc3 {[%clk 0:03:43.7]}
12... Bxc3+ {[%clk 0:04:38.5]} 13. bxc3 {[%clk 0:03:41.6]} 13... Bxg2 {[%clk
0:04:38.4]} 14. Rg1 {[%clk 0:03:39.3]} 14... Bb7 {[%clk 0:04:37.2]} 15. h5
{[%clk 0:03:36.7]} 15... e5 {[%clk 0:04:34.6]} 16. hxg6 {[%clk 0:03:34.6]} 16...
fxg6 {[%clk 0:04:32.9]} 17. d4 {[%clk 0:03:27.7]} 17... Qf6 {[%clk 0:04:30.8]}
18. Qe2 {[%clk 0:03:21.7]} 18... exd4 {[%clk 0:04:29.6]} 19. Nxd4 {[%clk
0:03:18.4]} 19... Rae8 {[%clk 0:04:27.7]} 0-1

[Event "Live Chess"]
[Site "Chess.com"]
[Date "2023.05.20"]
[Round "-"]
[White "xx_blindpuffin_xx"]
[Black "WelshTiger"]
[Result "0-1"]
[WhiteElo "2185"]
[BlackElo "2430"]
[TimeControl "300"]
[EndTime "9:58:34 PDT"]
[Termination "WelshTiger won by resignation"]

1. d4 {[%clk 0:04:58.3]} 1... d5 {[%clk 0:04:55.7]} 2. Bf4 {[%clk 0:04:57]} 2...
e6 {[%clk 0:04:52]} 3. e3 {[%clk 0:04:55.6]} 3... Bd6 {[%clk 0:04:51.7]} 4. Bxd6
{[%clk 0:04:53.8]} 4... Qxd6 {[%clk 0:04:51.6]} 5. c3 {[%clk 0:04:46.1]} 5...
Nf6 {[%clk 0:04:50.4]} 6. f4 {[%clk 0:04:45]} 6... c5 {[%clk 0:04:43.3]} 7. Bd3
{[%clk 0:04:43.6]} 7... Nc6 {[%clk 0:04:39.5]} 8. Nf3 {[%clk 0:04:41.4]} 8...
cxd4 {[%clk 0:04:35.8]} 9. cxd4 {[%clk 0:04:40]} 9... Qb4+ {[%clk 0:04:35]} 10.
Qd2 {[%clk 0:04:37.7]} 10... Bd7 {[%clk 0:04:32.2]} 11. Nc3 {[%clk 0:04:31.7]}
11... Na5 {[%clk 0:04:16.7]} 12. O-O {[%clk 0:04:19.5]} 12... Nc4 {[%clk
0:04:14.9]} 13. Bxc4 {[%clk 0:04:18.6]} 13... dxc4 {[%clk 0:04:12.6]} 14. Ne5
{[%clk 0:04:15.3]} 14... O-O {[%clk 0:04:07.9]} 15. a3 {[%clk 0:03:55.4]} 15...
Qb3 {[%clk 0:04:04.2]} 16. a4 {[%clk 0:03:52.4]} 16... Rfd8 {[%clk 0:03:58.4]}
17. Ra3 {[%clk 0:03:49.9]} 17... Qb4 {[%clk 0:03:57.7]} 18. Qe2 {[%clk
0:03:41.9]} 18... Be8 {[%clk 0:03:49.8]} 19. Nxc4 {[%clk 0:03:29.9]} 19... Rac8
{[%clk 0:03:39]} 20. Ne5 {[%clk 0:03:07.3]} 20... Rc7 {[%clk 0:03:29]} 21. Nd3
{[%clk 0:02:38.9]} 21... Qc4 {[%clk 0:03:21.1]} 22. Raa1 {[%clk 0:02:34.5]}
22... Rdc8 {[%clk 0:03:08.1]} 23. Rfc1 {[%clk 0:02:31.6]} 23... Qa6 {[%clk
0:02:59.2]} 24. Qf1 {[%clk 0:02:04.1]} 24... b6 {[%clk 0:02:54.9]} 25. Ne5
{[%clk 0:01:54.6]} 25... Qb7 {[%clk 0:02:45.8]} 26. Nb5 {[%clk 0:01:51.2]} 26...
Bxb5 {[%clk 0:02:42.5]} 27. axb5 {[%clk 0:01:51.1]} 27... Qe4 {[%clk 0:02:41.1]}
28. Nc4 {[%clk 0:01:19.3]} 28... Ng4 {[%clk 0:02:23.3]} 29. Qe1 {[%clk
0:00:59.3]} 29... Rxc4 {[%clk 0:02:20]} 30. Rxc4 {[%clk 0:00:57.1]} 30... Rxc4
{[%clk 0:02:19.3]} 31. Rxa7 {[%clk 0:00:57]} 31... h5 {[%clk 0:02:17.5]} 32. b3
{[%clk 0:00:51.5]} 32... Rc2 {[%clk 0:02:16.5]} 33. Qg3 {[%clk 0:00:44.9]} 33...
Re2 {[%clk 0:02:09.4]} 0-1

[Event "Live Chess"]
[Site "Chess.com"]
[Date "2023.05.20"]
[Round "-"]
[White "OBrightwell100"]
[Black "JoshMcK"]
[Result "0-1"]
[WhiteElo "1311"]
[BlackElo "1555"]
[TimeControl "300"]
[EndTime "9:58:34 PDT"]
[Termination "JoshMcK won by checkmate"]

1. e4 {[%clk 0:04:58.9]} 1... c6 {[%clk 0:04:58]} 2. d4 {[%clk 0:04:57]} 2... d5
{[%clk 0:04:57.9]} 3. e5 {[%clk 0:04:55.9]} 3... c5 {[%clk 0:04:56.4]} 4. dxc5
{[%clk 0:04:54.2]} 4... e6 {[%clk 0:04:55.2]} 5. Be3 {[%clk 0:04:50.9]} 5... Nd7
{[%clk 0:04:54.2]} 6. Nf3 {[%clk 0:04:46.4]} 6... Bxc5 {[%clk 0:04:44.2]} 7.
Bxc5 {[%clk 0:04:36.3]} 7... Nxc5 {[%clk 0:04:44.1]} 8. Nc3 {[%clk 0:04:31.1]}
8... Ne7 {[%clk 0:04:42]} 9. Bb5+ {[%clk 0:04:27.8]} 9... Bd7 {[%clk 0:04:39.4]}
10. Bxd7+ {[%clk 0:04:27.4]} 10... Qxd7 {[%clk 0:04:39.2]} 11. O-O {[%clk
0:04:25.2]} 11... O-O {[%clk 0:04:37.8]} 12. b4 {[%clk 0:04:20.2]} 12... Na6
{[%clk 0:04:32.1]} 13. b5 {[%clk 0:04:18.1]} 13... Nc7 {[%clk 0:04:30.3]} 14. a4
{[%clk 0:04:15.6]} 14... Ng6 {[%clk 0:04:28.4]} 15. Ne4 {[%clk 0:04:09.9]} 15...
a6 {[%clk 0:04:23.3]} 16. Nd6 {[%clk 0:04:04.4]} 16... axb5 {[%clk 0:04:18.3]}
17. axb5 {[%clk 0:04:00.9]} 17... Nxb5 {[%clk 0:04:13.4]} 18. Nxb5 {[%clk
0:03:58.1]} 18... Qxb5 {[%clk 0:04:11.4]} 19. Rxa8 {[%clk 0:03:57]} 19... Rxa8
{[%clk 0:04:09.4]} 20. Nd4 {[%clk 0:03:56.5]} 20... Qd7 {[%clk 0:04:04.3]} 21.
f4 {[%clk 0:03:50]} 21... Ne7 {[%clk 0:03:52]} 22. Nf3 {[%clk 0:03:35.7]} 22...
Qb5 {[%clk 0:03:42.7]} 23. Nd4 {[%clk 0:03:31.6]} 23... Qc5 {[%clk 0:03:37.1]}
24. Qd3 {[%clk 0:03:22.4]} 24... Nc6 {[%clk 0:03:31.8]} 25. c3 {[%clk
0:03:19.2]} 25... Ra3 {[%clk 0:03:21]} 26. Qd2 {[%clk 0:02:50.7]} 26... Qxc3
{[%clk 0:03:05.6]} 27. Qxc3 {[%clk 0:02:46.3]} 27... Rxc3 {[%clk 0:03:03.9]} 28.
Rb1 {[%clk 0:02:45.9]} 28... Nxd4 {[%clk 0:02:59.1]} 29. Rxb7 {[%clk 0:02:44]}
29... g6 {[%clk 0:02:58.3]} 30. Kf2 {[%clk 0:02:42.1]} 30... Nf5 {[%clk
0:02:54.4]} 31. g4 {[%clk 0:02:40.5]} 31... Nd4 {[%clk 0:02:51]} 32. h4 {[%clk
0:02:37.4]} 32... Rf3+ {[%clk 0:02:37.6]} 33. Kg2 {[%clk 0:02:34.8]} 33... Rxf4
{[%clk 0:02:36]} 34. h5 {[%clk 0:02:34.2]} 34... Rxg4+ {[%clk 0:02:34.7]} 35.
Kh3 {[%clk 0:02:32.4]} 35... Re4 {[%clk 0:02:32.1]} 36. h6 {[%clk 0:02:30.9]}
36... f5 {[%clk 0:02:23.9]} 37. exf6 {[%clk 0:02:28.3]} 37... Re3+ {[%clk
0:02:13.6]} 38. Kg4 {[%clk 0:02:26.2]} 38... Re4+ {[%clk 0:02:09.6]} 39. Kg5
{[%clk 0:02:22]} 39... Nf3# {[%clk 0:02:08.5]} 0-1

[Event "Live Chess"]
[Site "Chess.com"]
[Date "2023.05.20"]
[Round "-"]
[White "BearFromUkraine"]
[Black "LanceMaster23"]
[Result "0-1"]
[WhiteElo "1164"]
[BlackElo "1859"]
[TimeControl "300"]
[EndTime "9:58:42 PDT"]
[Termination "LanceMaster23 won by resignation"]

1. e4 {[%clk 0:04:54.8]} 1... c5 {[%clk 0:04:58.5]} 2. Nf3 {[%clk 0:04:53.3]}
2... Nc6 {[%clk 0:04:57.7]} 3. d4 {[%clk 0:04:51.8]} 3... cxd4 {[%clk
0:04:57.6]} 4. Nxd4 {[%clk 0:04:50.8]} 4... Qc7 {[%clk 0:04:57.1]} 5. Nc3 {[%clk
0:04:47.7]} 5... e6 {[%clk 0:04:55.5]} 6. Bc4 {[%clk 0:04:41]} 6... Nf6 {[%clk
0:04:54]} 7. O-O {[%clk 0:04:36.7]} 7... Be7 {[%clk 0:04:52.1]} 8. Bg5 {[%clk
0:04:32.1]} 8... h6 {[%clk 0:04:50.6]} 9. Bh4 {[%clk 0:04:28.4]} 9... O-O {[%clk
0:04:48.2]} 10. Nxc6 {[%clk 0:04:21.4]} 10... bxc6 {[%clk 0:04:46.7]} 11. Qf3
{[%clk 0:04:12.8]} 11... Bb7 {[%clk 0:04:28.4]} 12. Rad1 {[%clk 0:03:54.5]}
12... d5 {[%clk 0:04:20.9]} 13. Bxf6 {[%clk 0:03:47.7]} 13... Bxf6 {[%clk
0:04:19.4]} 14. exd5 {[%clk 0:03:46.1]} 14... cxd5 {[%clk 0:04:17.6]} 15. Nb5
{[%clk 0:03:24.8]} 15... Qxc4 {[%clk 0:04:09.4]} 0-1

[Event "Live Chess"]
[Site "Chess.com"]
[Date "2023.05.20"]
[Round "-"]
[White "f4nomore"]
[Black "MartaMost"]
[Result "1-0"]
[WhiteElo "1363"]
[BlackElo "1136"]
[TimeControl "300"]
[EndTime "9:58:46 PDT"]
[Termination "f4nomore won on time"]

1. b3 {[%clk 0:04:58.6]} 1... e5 {[%clk 0:04:58.3]} 2. Bb2 {[%clk 0:04:57]} 2...
Qf6 {[%clk 0:04:48.7]} 3. e3 {[%clk 0:04:53.1]} 3... d6 {[%clk 0:04:35.2]} 4.
Nf3 {[%clk 0:04:51.8]} 4... Bg4 {[%clk 0:04:28.3]} 5. Be2 {[%clk 0:04:50.3]}
5... Bxf3 {[%clk 0:04:26.8]} 6. Bxf3 {[%clk 0:04:48.7]} 6... c6 {[%clk
0:04:12.5]} 7. O-O {[%clk 0:04:43.6]} 7... d5 {[%clk 0:04:05]} 8. Nc3 {[%clk
0:04:31.4]} 8... e4 {[%clk 0:03:53.6]} 9. Be2 {[%clk 0:04:19.7]} 9... Bb4 {[%clk
0:03:35.2]} 10. Rb1 {[%clk 0:04:15.9]} 10... Bxc3 {[%clk 0:03:29]} 11. Bxc3
{[%clk 0:04:14.1]} 11... Qd6 {[%clk 0:03:08.4]} 12. f4 {[%clk 0:04:07.7]} 12...
Qa3 {[%clk 0:03:04.2]} 13. Ra1 {[%clk 0:03:55.1]} 13... Nf6 {[%clk 0:02:45.6]}
14. Bb2 {[%clk 0:03:49]} 14... Qxb2 {[%clk 0:02:41.5]} 15. Rb1 {[%clk
0:03:45.1]} 15... Qxa2 {[%clk 0:02:37.9]} 16. d3 {[%clk 0:03:42.1]} 16... exd3
{[%clk 0:02:35.6]} 17. Bxd3 {[%clk 0:03:40.9]} 17... Ng4 {[%clk 0:02:29]} 18.
Qxg4 {[%clk 0:03:36.3]} 18... h6 {[%clk 0:02:22.2]} 19. Qxg7 {[%clk 0:03:32.2]}
19... Rf8 {[%clk 0:02:10.9]} 20. Qe5+ {[%clk 0:03:17.8]} 20... Kd7 {[%clk
0:01:57.5]} 21. Bf5+ {[%clk 0:03:07.1]} 21... Kd8 {[%clk 0:01:51.8]} 22. Qf6+
{[%clk 0:02:59.1]} 22... Ke8 {[%clk 0:01:46]} 23. Qxh6 {[%clk 0:02:36.6]} 23...
Qa5 {[%clk 0:01:23.3]} 24. Qd6 {[%clk 0:02:28.3]} 24... Qc3 {[%clk 0:01:15.9]}
25. Rbe1 {[%clk 0:02:16]} 25... Na6 {[%clk 0:01:07.2]} 26. Bd7+ {[%clk
0:02:03.9]} 26... Kd8 {[%clk 0:01:02.8]} 27. Qxf8+ {[%clk 0:02:01]} 27... Kxd7
{[%clk 0:00:58.1]} 28. Qxa8 {[%clk 0:01:59.2]} 28... Qxc2 {[%clk 0:00:48.8]} 29.
Qxb7+ {[%clk 0:01:55.6]} 29... Nc7 {[%clk 0:00:43.1]} 30. Qxa7 {[%clk
0:01:44.5]} 30... Qxb3 {[%clk 0:00:40.3]} 31. Qd4 {[%clk 0:01:37.9]} 31... Ne6
{[%clk 0:00:31.4]} 32. Qf6 {[%clk 0:01:31.7]} 32... Qb6 {[%clk 0:00:19.3]} 33.
Qxf7+ {[%clk 0:01:27.8]} 33... Kd6 {[%clk 0:00:14.4]} 34. Qf6 {[%clk 0:01:23.3]}
34... Qc5 {[%clk 0:00:08.4]} 35. f5 {[%clk 0:01:19.6]} 35... Qc4 {[%clk
0:00:03.8]} 36. Qxe6+ {[%clk 0:01:16.2]} 1-0